bitfinex-derivatives/quotes_BTCF0:USTF0_20241125
["timestamp","ask_amount","ask_price","bid_price","bid_amount"]
[1732576744044,0.01,93856.0,93840.0,0.08400744]
[1732576744344,0.01,93856.0,93839.0,0.44752]
[1732576744345,0.053283,93842.0,93839.0,0.44752]
[1732576744530,0.053285,93840.0,93839.0,0.45320127]
[1732576745036,0.053285,93840.0,93839.0,0.64068127]
[1732576745437,0.053285,93840.0,93839.0,0.18848]
[1732576745742,0.053285,93840.0,93839.0,0.001]
[1732576745944,0.053285,93839.0,93834.0,0.18752]
[1732576746141,0.3608,93835.0,93833.0,0.053288]
[1732576746440,0.3608,93835.0,93834.0,0.18752]
[1732576747246,0.3608,93835.0,93833.0,0.053288]
[1732576747445,0.3608,93835.0,93834.0,0.18752]
[1732576747942,0.3608,93835.0,93834.0,0.18852]
[1732576748241,0.01,93843.0,93835.0,0.053287]
[1732576748541,0.01,93843.0,93836.0,0.053287]
[1732576748931,0.01,93843.0,93837.0,0.18756]
[1732576750144,0.01,93843.0,93837.0,0.18856]
[1732576751046,0.01,93843.0,93839.0,0.053285]
[1732576751547,0.01,93843.0,93840.0,0.18756]
[1732576752951,0.01,93843.0,93820.0,0.10903521]
[1732576752952,0.053286,93838.0,93829.0,0.053291]
[1732576753137,0.3608,93835.0,93830.0,0.18756]
[1732576754037,0.01,93843.0,93821.0,0.45366191]
[1732576754038,0.01,93843.0,93831.0,0.18756]
[1732576754233,0.01,93843.0,93821.0,0.45310191]
[1732576754234,0.01,93843.0,93834.0,0.053287]
[1732576754445,0.01,93843.0,93835.0,0.18756]
[1732576754743,0.3608,93847.0,93840.0,0.053285]
[1732576754945,0.3608,93847.0,93842.0,0.053283]
[1732576755346,0.3608,93847.0,93837.0,0.10903521]
[1732576755550,0.3608,93847.0,93845.0,0.053281]
[1732576755844,0.3608,93855.0,93847.0,0.053281]
[1732576756144,0.3608,93855.0,93848.0,0.1876]
[1732576756339,0.01,93854.0,93849.0,0.1876]
[1732576756540,0.053279,93850.0,93849.0,0.1876]
[1732576756845,0.3608,93855.0,93849.0,0.1876]
[1732576757037,0.3608,93855.0,93850.0,0.1876]
[1732576757645,0.3608,93855.0,93847.0,0.11128]
[1732576757844,0.3608,93855.0,93848.0,0.1876]
[1732576758045,0.3648,93855.0,93849.0,0.053279]
[1732576758240,0.3648,93855.0,93850.0,0.001]
[1732576758646,0.3608,93855.0,93850.0,0.002]
[1732576759142,0.3608,93855.0,93850.0,0.001]
[1732576759349,0.3608,93855.0,93851.0,0.1876]
[1732576759644,0.3608,93855.0,93850.0,0.001]
[1732576759847,0.053278,93851.0,93850.0,0.001]
[1732576760041,0.053278,93851.0,93849.0,0.1876]
[1732576761651,0.053279,93850.0,93846.0,0.45322274]
[1732576761946,0.053279,93850.0,93847.0,0.1876]
[1732576762149,0.004,93851.0,93847.0,0.1876]
[1732576762448,0.05328,93849.0,93847.0,0.1876]
[1732576762647,0.0625,93848.0,93847.0,0.1876]
[1732576763348,0.11578,93848.0,93847.0,0.1876]
[1732576763940,0.0625,93848.0,93847.0,0.1876]
[1732576764254,0.0645,93848.0,93847.0,0.1876]
[1732576764951,0.0675,93848.0,93847.0,0.1876]
[1732576765457,0.0645,93848.0,93847.0,0.1876]
[1732576765654,0.002,93848.0,93847.0,0.240881]
[1732576766050,0.003,93848.0,93847.0,0.240881]
[1732576766358,0.002,93848.0,93847.0,0.240881]
[1732576767146,0.001,93848.0,93847.0,0.054281]
[1732576767455,0.001,93848.0,93847.0,0.241881]
[1732576768155,0.001,93848.0,93847.0,0.1886]
[1732576768549,0.36192001,93854.0,93847.0,0.1886]
[1732576768751,0.3608,93854.0,93847.0,0.1896]
[1732576769052,0.09556306,93852.0,93848.0,0.05328]
[1732576769250,0.053277,93853.0,93848.0,0.05328]
[1732576769251,0.09556306,93850.0,93848.0,0.05328]
[1732576769454,0.053277,93853.0,93848.0,0.05328]
[1732576769455,0.12742408,93851.0,93848.0,0.05328]
[1732576769646,0.18070108,93853.0,93848.0,0.05328]
[1732576770151,0.18070108,93853.0,93848.0,0.05428]
[1732576770645,0.18070308,93850.0,93848.0,0.001]
[1732576770846,0.053279,93850.0,93848.0,0.001]
[1732576771049,0.05328,93848.0,93847.0,0.1876]
[1732576771553,0.21270026,93848.0,93847.0,0.1876]
[1732576771757,0.10510245,93848.0,93847.0,0.1876]
[1732576772148,0.10510319,93848.0,93847.0,0.18716]
[1732576772455,0.24684556,93848.0,93847.0,0.18716]
[1732576772666,0.10810319,93848.0,93847.0,0.18716]
[1732576772849,0.10910319,93848.0,93847.0,0.18716]
[1732576773044,0.21681167,93848.0,93847.0,0.18716]
[1732576773255,0.10910137,93848.0,93846.0,0.44772]
[1732576773455,0.05182137,93847.0,93846.0,0.63488]
[1732576774160,0.15957429,93847.0,93846.0,0.63488]
[1732576774755,0.05182106,93847.0,93846.0,0.63488]
[1732576775249,0.21239623,93847.0,93846.0,0.63488]
[1732576775455,0.001,93847.0,93846.0,0.688161]
[1732576775652,0.1595852,93847.0,93846.0,0.688161]
[1732576775852,0.005,93847.0,93846.0,0.688161]
[1732576776052,0.16458487,93847.0,93846.0,0.501001]
[1732576776262,0.16458487,93847.0,93846.0,0.688161]
[1732576776263,0.005,93847.0,93846.0,0.688161]
[1732576776564,0.16258487,93847.0,93846.0,0.688161]
[1732576776760,0.16358487,93847.0,93846.0,0.688161]
[1732576777263,0.05582049,93847.0,93846.0,0.44772]
[1732576777456,0.05482049,93847.0,93846.0,0.63488]
[1732576777963,0.05682049,93847.0,93846.0,0.63488]
[1732576779671,0.16462283,93847.0,93846.0,0.63488]
[1732576779860,0.005,93847.0,93846.0,0.63488]
[1732576780168,0.21790585,93847.0,93846.0,0.63488]
[1732576780364,0.21290585,93847.0,93846.0,0.63488]
[1732576780668,0.056281,93847.0,93846.0,0.63488]
[1732576780982,0.055281,93847.0,93846.0,0.63488]
[1732576781159,0.21590728,93847.0,93846.0,0.63488]
[1732576781355,0.056281,93847.0,93846.0,0.63488]
[1732576781661,0.058281,93847.0,93846.0,0.63488]
[1732576782062,0.002,93847.0,93846.0,0.63488]
[1732576782265,0.003,93847.0,93846.0,0.63488]
[1732576782663,0.001,93847.0,93846.0,0.63488]
[1732576782862,0.001,93847.0,93831.0,0.3608]
[1732576782863,0.053289,93833.0,93829.0,0.18899992]
[1732576783059,0.053289,93833.0,93827.0,0.053292]
[1732576783060,0.05329,93831.0,93830.0,0.18716]
[1732576783269,0.3608,93837.0,93830.0,0.18716]
[1732576783270,0.15964623,93835.0,93830.0,0.18716]
[1732576783465,0.21293323,93836.0,93831.0,0.053289]
[1732576783766,0.52044623,93837.0,93836.0,0.053287]
[1732576783967,0.3608,93837.0,93836.0,0.053287]
[1732576784265,0.15964623,93843.0,93842.0,0.053283]
[1732576784469,0.3608,93846.0,93844.0,0.053282]
[1732576784876,0.001,93847.0,93836.0,0.40523042]
[1732576784877,0.12869719,93847.0,93845.0,0.76744]
[1732576785074,0.09676788,93847.0,93846.0,0.176481]
[1732576785264,0.001,93847.0,93846.0,0.23546054]
[1732576785568,0.09576788,93849.0,93848.0,0.05328]
[1732576785877,0.09576788,93850.0,93848.0,0.60124]
[1732576786056,0.12769719,93860.0,93849.0,0.0587]
[1732576786258,0.12769719,93864.0,93862.0,0.053272]
[1732576786557,0.3608,93866.0,93858.0,0.3608]
[1732576786558,0.3608,93866.0,93864.0,0.053271]
[1732576786760,0.3608,93866.0,93863.0,0.18716]
[1732576786761,0.12769719,93872.0,93863.0,0.18716]
[1732576786963,0.12769719,93868.0,93863.0,0.18716]
[1732576787460,0.3608,93873.0,93867.0,0.053269]
[1732576787461,0.12769719,93871.0,93867.0,0.053269]
[1732576787661,0.12769719,93871.0,93868.0,0.053268]
[1732576787865,0.053271,93864.0,93863.0,0.00558826]
[1732576788066,0.01,93869.0,93863.0,0.18816]
[1732576788067,0.3608,93865.0,93863.0,0.18816]
[1732576788269,0.414071,93865.0,93863.0,0.18816]
[1732576788669,0.414071,93865.0,93863.0,0.18716]
[1732576788670,0.12757743,93865.0,93863.0,0.18716]
[1732576788860,0.12757743,93866.0,93865.0,0.05327]
[1732576789169,0.053271,93865.0,93858.0,0.053274]
[1732576789473,0.053271,93865.0,93856.0,0.18926335]
[1732576789474,0.053274,93860.0,93859.0,0.18716]
[1732576790360,0.053274,93860.0,93853.0,0.05893927]
[1732576790571,0.053274,93860.0,93854.0,0.18716]
[1732576790572,0.18084257,93860.0,93854.0,0.18716]
[1732576790772,0.13156857,93860.0,93859.0,0.053274]
[1732576791067,0.004,93860.0,93859.0,0.053274]
[1732576791267,0.13356662,93860.0,93859.0,0.053274]
[1732576791471,0.006,93860.0,93859.0,0.053274]
[1732576791866,0.006,93860.0,93859.0,0.240434]
[1732576793671,0.006,93860.0,93859.0,0.79049735]
[1732576793970,0.006,93860.0,93859.0,0.601234]
[1732576795769,0.004,93860.0,93859.0,0.602234]
[1732576796170,0.0027,93872.0,93859.0,0.921874]
[1732576796366,0.0617,93874.0,93871.0,0.053267]
[1732576796677,0.0617,93874.0,93872.0,0.18716]
[1732576797578,0.3648,93873.0,93872.0,0.18716]
[1732576797774,0.3648,93873.0,93871.0,0.053267]
[1732576797972,0.3648,93873.0,93872.0,0.18716]
[1732576799068,0.0617,93874.0,93873.0,0.053266]
[1732576800372,0.0657,93874.0,93873.0,0.053266]
[1732576801070,0.0677,93874.0,93873.0,0.053266]
[1732576801273,0.48948663,93892.0,93873.0,0.053266]
[1732576801274,0.36192001,93892.0,93873.0,0.733626]
[1732576801476,0.52044623,93902.0,93873.0,0.733626]
[1732576801477,0.0127,93893.0,93891.0,0.053256]
[1732576801669,0.0591,93899.0,93898.0,0.053252]
[1732576801871,0.0591,93899.0,93898.0,0.239972]
[1732576802083,0.01,93906.0,93898.0,0.18672]
[1732576802272,0.01,93906.0,93904.0,0.053248]
[1732576802787,0.0591,93912.0,93898.0,0.18672]
[1732576802788,0.0591,93912.0,93899.0,0.3608]
[1732576802988,0.0591,93912.0,93910.0,0.053244]
[1732576803280,0.0591,93912.0,93911.0,0.18672]
[1732576804071,0.0591,93912.0,93911.0,0.239964]
[1732576804583,0.053234,93929.0,93922.0,0.053238]
[1732576804783,0.3708,93930.0,93907.0,0.3608]
[1732576804784,0.0558,93922.0,93921.0,0.053239]
[1732576805080,0.0558,93922.0,93921.0,0.239959]
[1732576805680,0.0001336,93933.0,93919.0,0.80908]
[1732576805881,0.0001336,93933.0,93922.0,0.001]
[1732576806180,0.0001336,93933.0,93931.0,0.053233]
[1732576806481,0.0001336,93933.0,93932.0,0.18668]
[1732576808077,0.0001336,93933.0,93932.0,0.54748]
[1732576808283,0.0027,93948.0,93947.0,0.053224]
[1732576808587,0.0677,93953.0,93952.0,0.053221]
[1732576808777,0.0677,93953.0,93952.0,0.414021]
[1732576809376,0.0677,93953.0,93952.0,0.41413269]
[1732576809783,0.0697,93953.0,93952.0,0.41413269]
[1732576810285,0.0737,93953.0,93952.0,0.41413269]
[1732576810582,0.0737,93953.0,93952.0,0.05333269]
[1732576810795,0.0737,93953.0,93947.0,0.44756]
[1732576811082,0.126921,93953.0,93952.0,0.09604]
[1732576811276,0.053222,93951.0,93950.0,0.18664]
[1732576811871,0.0737,93953.0,93950.0,0.18664]
[1732576811872,0.0717,93953.0,93950.0,0.18664]
[1732576812073,0.0717,93953.0,93952.0,0.053221]
[1732576812384,0.0717,93953.0,93952.0,0.239861]
[1732576812385,0.0677,93953.0,93952.0,0.239861]
[1732576812977,0.0717,93953.0,93952.0,0.239861]
[1732576814284,0.0727,93953.0,93952.0,0.239861]
[1732576815972,0.0727,93953.0,93952.0,0.053221]
[1732576816183,0.0727,93953.0,93952.0,0.1866]
[1732576816971,0.015,93953.0,93952.0,0.1866]
[1732576821182,0.429021,93953.0,93947.0,0.44756]
[1732576821391,0.429021,93953.0,93940.0,0.18656]
[1732576821392,0.053224,93948.0,93940.0,0.18656]
[1732576821579,0.3758,93953.0,93941.0,0.18656]
[1732576821580,0.053224,93947.0,93941.0,0.18656]
[1732576821786,0.01,93942.0,93941.0,0.18656]
[1732576822388,0.01,93942.0,93930.0,0.11459409]
[1732576822693,0.1174,93941.0,93940.0,0.001]
[1732576822893,0.1174,93941.0,93940.0,0.09696]
[1732576823195,0.053232,93933.0,93932.0,0.18656]
[1732576823497,0.01,93928.0,93927.0,0.44728]
[1732576823793,0.3608,93933.0,93932.0,0.053232]
[1732576824388,0.3608,93933.0,93932.0,0.239832]
[1732576824998,0.3608,93933.0,93932.0,0.053232]
[1732576825190,0.47932001,93941.0,93932.0,0.053232]
[1732576825191,0.42142001,93941.0,93940.0,0.053228]
[1732576825391,0.4203,93941.0,93940.0,0.053228]
[1732576826697,0.01,93937.0,93932.0,0.1876]
[1732576826883,0.01,93937.0,93934.0,0.053231]
[1732576827894,0.01,93937.0,93935.0,0.05323]
[1732576828086,0.01,93937.0,93932.0,0.19207078]
[1732576828087,0.012,93937.0,93932.0,0.19207078]
[1732576828286,0.012,93937.0,93928.0,0.053235]
[1732576828494,0.053231,93936.0,93929.0,0.1866]
[1732576828895,0.053231,93936.0,93929.0,0.239834]
[1732576829303,0.0555,93935.0,93929.0,0.239834]
[1732576829500,0.3608,93932.0,93929.0,0.1866]
[1732576829795,0.053232,93933.0,93929.0,0.1866]
[1732576830997,0.056232,93933.0,93929.0,0.1866]
[1732576831896,0.053232,93933.0,93929.0,0.239834]
[1732576832100,0.053233,93932.0,93930.0,0.1862]
[1732576832290,0.3608,93931.0,93930.0,0.1862]
[1732576832599,0.01,93923.0,93910.0,0.053245]
[1732576832800,0.3708,93912.0,93909.0,0.44732]
[1732576833000,0.165645,93911.0,93909.0,0.44732]
[1732576833303,0.1124,93911.0,93909.0,0.44732]
[1732576834098,0.1124,93911.0,93909.0,0.500565]
[1732576834407,0.0575,93911.0,93909.0,0.502565]
[1732576834599,0.0575,93911.0,93909.0,0.503565]
[1732576834997,0.0575,93911.0,93910.0,0.1862]
[1732576835310,0.3608,93912.0,93911.0,0.053244]
[1732576835496,0.3608,93912.0,93911.0,0.239444]
[1732576836004,0.3608,93912.0,93911.0,0.239484]
[1732576836499,0.3608,93912.0,93911.0,0.18624]
[1732576836901,0.3608,93912.0,93911.0,0.18824]
[1732576837691,0.3608,93912.0,93911.0,0.18924]
[1732576838495,0.01,93919.0,93917.0,0.05324]
[1732576838891,0.414035,93928.0,93912.0,0.0534]
[1732576839095,0.01,93924.0,93923.0,0.053238]
[1732576839308,0.01,93924.0,93923.0,0.239478]
[1732576839505,0.01,93924.0,93923.0,0.18624]
[1732576840704,0.01,93924.0,93923.0,0.18724]
[1732576842301,0.3608,93928.0,93923.0,0.18724]
[1732576842502,0.3608,93928.0,93925.0,0.053236]
[1732576842702,0.3608,93928.0,93926.0,0.18624]
[1732576843603,0.3618,93928.0,93926.0,0.18624]
[1732576844303,0.3628,93928.0,93925.0,0.053236]
[1732576844504,0.3628,93928.0,93927.0,0.18624]
[1732576845207,0.002,93928.0,93927.0,0.239475]
[1732576846810,0.053229,93939.0,93927.0,0.18724]
[1732576847109,0.053229,93939.0,93932.0,0.053232]
[1732576847498,0.01,93942.0,93929.0,0.10903521]
[1732576847698,0.01,93942.0,93935.0,0.05323]
[1732576847898,0.01,93942.0,93936.0,0.05323]
[1732576848313,0.01,93942.0,93930.0,0.18624]
[1732576848611,0.01,93942.0,93937.0,0.053229]
[1732576849301,0.01,93942.0,93930.0,0.18624]
[1732576849496,0.05323,93937.0,93931.0,0.053233]
[1732576849702,0.05323,93937.0,93932.0,0.054232]
[1732576850299,0.12724151,93942.0,93941.0,0.053227]
[1732576850510,0.12724151,93944.0,93941.0,0.239467]
[1732576850713,0.12724151,93944.0,93932.0,0.001]
[1732576850714,0.13724151,93945.0,93943.0,0.053226]
[1732576850904,0.01,93945.0,93943.0,0.053226]
[1732576851405,0.12724151,93944.0,93943.0,0.053226]
[1732576851612,0.004,93944.0,93943.0,0.053226]
[1732576852001,0.004,93944.0,93943.0,0.105526]
[1732576852308,0.0027,93957.0,93955.0,0.053219]
[1732576852497,0.0027,93957.0,93944.0,0.053225]
[1732576852498,0.01,93961.0,93960.0,0.053217]
[1732576852700,0.01,93961.0,93960.0,0.600257]
[1732576853096,0.01,93974.0,93969.0,0.053211]
[1732576853300,0.3608,93982.0,93960.0,0.919537]
[1732576853301,0.12723495,93975.0,93974.0,0.053209]
[1732576853504,0.36192001,93982.0,93974.0,0.053209]
[1732576853505,0.12723495,93978.0,93977.0,0.053207]
[1732576853805,0.01,93984.0,93982.0,0.053204]
[1732576854004,0.12723495,93994.0,93987.0,0.053201]
[1732576854208,0.22723495,94000.0,93995.0,0.053197]
[1732576854402,0.22723495,94000.0,93988.0,0.1862]
[1732576854403,0.1,94000.0,93998.0,0.053195]
[1732576857101,0.1,94000.0,93998.0,0.056195]
[1732576857306,0.1,94000.0,93999.0,0.18616]
[1732576857806,0.153194,94000.0,93999.0,0.18616]
[1732576858800,0.1,94000.0,93999.0,0.18616]
[1732576859112,0.41916,94000.0,93998.0,0.003]
[1732576859302,0.41916,94000.0,93957.0,0.053218]
[1732576859303,0.37236,93999.0,93982.0,0.18616]
[1732576859503,0.3608,93983.0,93981.0,0.053204]
[1732576859703,0.3608,93983.0,93982.0,0.18616]
[1732576860606,0.3608,93983.0,93982.0,0.001]
[1732576860810,0.3608,93983.0,93982.0,0.18716]
[1732576861017,0.00568086,93989.0,93988.0,0.053201]
[1732576861201,0.01,93993.0,93982.0,0.18716]
[1732576861409,0.01,93993.0,93992.0,0.053198]
[1732576862112,0.01,93983.0,93982.0,0.002]
[1732576862412,0.01,93983.0,93967.0,0.18576]
[1732576862610,0.3708,93969.0,93967.0,0.18576]
[1732576862812,0.01,93969.0,93968.0,0.500452]
[1732576863199,0.01,93969.0,93968.0,0.686212]
[1732576863611,0.01,93969.0,93968.0,0.687212]
[1732576864310,0.012,93969.0,93968.0,0.686212]
[1732576864811,0.013,93969.0,93968.0,0.686212]
[1732576866115,0.013,93969.0,93968.0,0.687212]
[1732576866415,0.01,93969.0,93968.0,0.688212]
[1732576867014,0.01,93969.0,93968.0,0.500452]
[1732576867214,0.01,93969.0,93968.0,0.686212]
[1732576867705,0.011,93969.0,93968.0,0.686212]
[1732576870208,0.01,93969.0,93968.0,0.689212]
[1732576871217,0.01,93969.0,93968.0,0.687212]
[1732576871218,0.011,93969.0,93968.0,0.687212]
[1732576872507,0.011,93969.0,93968.0,0.686212]
[1732576873521,0.011,93969.0,93968.0,0.687212]
[1732576874315,0.001,93969.0,93968.0,0.687212]
[1732576874717,0.3608,93989.0,93968.0,0.95324]
[1732576875018,0.3608,93989.0,93977.0,0.3608]
[1732576875219,0.3608,93989.0,93978.0,0.0486]
[1732576876318,0.01,93985.0,93983.0,0.053203]
[1732576877119,0.3628,93989.0,93988.0,0.053201]
[1732576877318,0.3608,93989.0,93988.0,0.053201]
[1732576877516,0.4074,93997.0,93995.0,0.053196]
[1732576877716,0.4074,93997.0,93996.0,0.18576]
[1732576879425,0.4174,93997.0,93996.0,0.18576]
[1732576880017,0.4184,93997.0,93996.0,0.18576]
[1732576880221,0.4214,93997.0,93996.0,0.18576]
[1732576880415,0.3748,93997.0,93996.0,0.18576]
[1732576883122,0.0532,93989.0,93978.0,0.0486]
[1732576883324,0.3608,93989.0,93979.0,0.18904678]
[1732576883523,0.3608,93989.0,93987.0,0.053201]
[1732576883825,0.3608,93989.0,93979.0,0.18572]
[1732576883826,0.053197,93996.0,93994.0,0.053197]
[1732576884015,0.3748,93997.0,93995.0,0.238916]
[1732576884222,0.3748,93997.0,93996.0,0.18572]
[1732576884624,0.3618,93997.0,93996.0,0.18572]
[1732576886228,0.001,93997.0,93996.0,0.18572]
[1732576886416,0.001,93997.0,93996.0,0.23622]
[1732576886620,0.001,93997.0,93996.0,0.23954608]
[1732576886919,0.004,93997.0,93996.0,0.23954608]
[1732576887123,0.004,93997.0,93996.0,0.23622]
[1732576887331,0.001,93997.0,93996.0,0.23622]
[1732576887515,0.001,93997.0,93996.0,0.24173271]
[1732576887516,0.004,93997.0,93996.0,0.24173271]
[1732576888727,0.004,93997.0,93996.0,0.05601271]
[1732576888920,0.004,93997.0,93996.0,0.24173271]
[1732576889121,0.004,93997.0,93995.0,0.053196]
[1732576889426,0.004,93997.0,93996.0,0.18572]
[1732576890427,0.004,93997.0,93995.0,0.053196]
[1732576890626,0.004,93997.0,93996.0,0.18572]
[1732576890926,0.004,93997.0,93995.0,0.053196]
[1732576891129,0.004,93997.0,93996.0,0.18532]
[1732576892418,0.003,93997.0,93996.0,0.18532]
[1732576892635,0.004,93997.0,93996.0,0.18532]
[1732576893230,0.001,93997.0,93996.0,0.18532]
[1732576893520,0.004,93997.0,93996.0,0.18532]
[1732576894523,0.01,93996.0,93995.0,0.053196]
[1732576895736,0.011,93996.0,93995.0,0.053196]
[1732576896032,0.011,93996.0,93995.0,0.238516]
[1732576896423,0.014,93996.0,93995.0,0.053196]
[1732576896625,0.014,93996.0,93995.0,0.238516]
[1732576897530,0.014,93996.0,93995.0,0.053196]
[1732576898827,0.014,93996.0,93986.0,0.44712]
[1732576899026,0.01,93985.0,93984.0,0.053203]
[1732576899233,0.053204,93983.0,93982.0,0.00546531]
[1732576899527,0.053204,93983.0,93979.0,0.053205]
[1732576899727,0.053204,93983.0,93971.0,0.18892912]
[1732576899728,0.053204,93983.0,93982.0,0.18532]
[1732576900036,0.053204,93983.0,93981.0,0.053205]
[1732576900225,0.053204,93983.0,93982.0,0.18532]
[1732576900633,0.18043895,93983.0,93982.0,0.002]
[1732576900833,0.053204,93983.0,93982.0,0.002]
[1732576901050,0.01551365,93985.0,93979.0,0.18532]
[1732576901051,0.053205,93980.0,93979.0,0.18532]
[1732576901226,0.18057952,93980.0,93979.0,0.18532]
[1732576901748,0.053205,93980.0,93979.0,0.18532]
[1732576901928,0.18057952,93980.0,93979.0,0.18532]
[1732576902129,0.053205,93980.0,93979.0,0.18532]
[1732576902644,0.01,93985.0,93979.0,0.18632]
[1732576902833,0.01,93985.0,93984.0,0.053203]
[1732576903443,0.01,93985.0,93984.0,0.238523]
[1732576903938,0.01,93985.0,93984.0,0.18532]
[1732576904747,0.053205,93981.0,93979.0,0.003]
[1732576904936,0.3608,93980.0,93979.0,0.003]
[1732576905942,0.3608,93980.0,93963.0,0.053215]
[1732576905943,0.053212,93969.0,93963.0,0.053215]
[1732576906139,0.053212,93969.0,93958.0,0.0481]
[1732576906140,0.50959385,93969.0,93958.0,0.0481]
[1732576906344,0.09558185,93968.0,93959.0,0.1632023]
[1732576906540,0.09555547,93970.0,93967.0,0.3608]
[1732576906737,0.053207,93978.0,93973.0,0.053209]
[1732576907045,0.0585,93979.0,93977.0,0.053207]
[1732576907232,0.01,93979.0,93978.0,0.18532]
[1732576907542,0.3608,93980.0,93979.0,0.053206]
[1732576907940,0.3608,93980.0,93979.0,0.100106]
[1732576909859,0.3608,93980.0,93979.0,0.101106]
[1732576910348,0.3608,93980.0,93979.0,0.103106]
[1732576911246,0.3608,93980.0,93979.0,0.1085359]
[1732576912947,0.01,93988.0,93979.0,0.0553299]
[1732576913136,0.01,93988.0,93985.0,0.053202]
[1732576913641,0.01,93988.0,93986.0,0.053202]
[1732576916341,0.011,93988.0,93986.0,0.053202]
[1732576916743,0.011,93988.0,93986.0,0.054202]
[1732576922054,0.064201,93988.0,93986.0,0.001]
[1732576922346,0.064201,93988.0,93960.0,0.53141817]
[1732576922347,0.063208,93976.0,93975.0,0.185]
[1732576922550,0.063208,93976.0,93965.0,0.18892912]
[1732576922551,0.053213,93967.0,93965.0,0.18892912]
[1732576922856,0.3708,93966.0,93947.0,0.18892912]
[1732576923044,0.053224,93947.0,93945.0,0.37799985]
[1732576923242,0.053226,93944.0,93942.0,0.18892912]
[1732576923442,0.72272001,93948.0,93930.0,0.00159647]
[1732576923443,0.01,93945.0,93931.0,0.23892912]
[1732576923646,0.414033,93932.0,93930.0,0.00159647]
[1732576924744,0.01,93924.0,93923.0,0.18892912]
[1732576924941,0.3708,93924.0,93922.0,0.053238]
[1732576925945,0.3708,93924.0,93922.0,0.238278]
[1732576926248,0.3708,93924.0,93922.0,0.053238]
[1732576926448,0.3588,93924.0,93922.0,0.054238]
[1732576926647,0.01,93934.0,93922.0,0.001]
[1732576926850,0.01,93934.0,93933.0,0.053232]
[1732576927350,0.01,93934.0,93933.0,0.238272]
[1732576927943,0.0503,93948.0,93933.0,0.238272]
[1732576927944,0.0027,93948.0,93947.0,0.053224]
[1732576928150,0.01,93950.0,93949.0,0.053223]
[1732576929444,0.01,93950.0,93947.0,0.19098786]
[1732576930054,0.01,93950.0,93949.0,0.001]
[1732576930456,0.01,93950.0,93949.0,0.002]
[1732576930758,0.01,93950.0,93925.0,0.44724]
[1732576930759,0.382542,93950.0,93925.0,0.44724]
[1732576931067,0.3708,93933.0,93932.0,0.18504]
[1732576932243,0.3708,93933.0,93930.0,0.18504]
[1732576932651,0.01,93933.0,93931.0,0.18504]
[1732576932858,0.3708,93932.0,93931.0,0.18504]
[1732576933054,0.01,93932.0,93931.0,0.18504]
[1732576933356,0.01,93932.0,93930.0,0.053233]
[1732576933653,0.01,93932.0,93931.0,0.18504]
[1732576934948,0.01,93932.0,93931.0,0.001]
[1732576935145,0.01,93932.0,93931.0,0.18608]
[1732576936152,0.01,93932.0,93931.0,0.001]
[1732576936353,0.01,93932.0,93923.0,0.18508]
[1732576936354,0.053233,93931.0,93923.0,0.18508]
[1732576936653,0.01,93932.0,93927.0,0.053235]
[1732576936857,0.3608,93929.0,93927.0,0.238315]
[1732576937449,0.3608,93929.0,93928.0,0.18508]
[1732576938960,0.3608,93929.0,93928.0,0.001]
[1732576939159,0.22232648,93980.0,93941.0,0.053227]
[1732576939160,0.01,93942.0,93941.0,0.053227]
[1732576939361,0.01,93942.0,93941.0,0.238307]
[1732576939564,0.01,93943.0,93941.0,0.238307]
[1732576940555,0.006,93942.0,93941.0,0.239307]
[1732576940958,0.01,93943.0,93941.0,0.238307]
[1732576941264,0.016,93943.0,93941.0,0.239307]
[1732576941653,0.002,93942.0,93941.0,0.239307]
[1732576941950,0.002,93942.0,93941.0,0.18608]
[1732576942157,0.002,93942.0,93941.0,0.19200117]
[1732576943059,0.018,93943.0,93942.0,0.053227]
[1732576943251,0.012,93943.0,93942.0,0.053227]
[1732576944258,0.002,93943.0,93942.0,0.053227]
[1732576944453,0.002,93943.0,93942.0,0.054227]
[1732576944869,0.002,93943.0,93942.0,0.053227]
[1732576945055,0.01,93956.0,93955.0,0.053219]
[1732576945252,0.01,93956.0,93955.0,0.238299]
[1732576946767,0.012,93956.0,93955.0,0.238299]
[1732576947265,0.065219,93956.0,93955.0,0.18508]
[1732576947867,0.063226,93944.0,93942.0,0.001]
[1732576948173,0.063226,93944.0,93939.0,0.00601648]
[1732576948174,0.053228,93940.0,93939.0,0.00601648]
[1732576948462,0.053228,93940.0,93930.0,0.18508]
[1732576948463,0.053233,93932.0,93930.0,0.18508]
[1732576948666,0.053229,93938.0,93933.0,0.053232]
[1732576948862,0.3608,93940.0,93933.0,0.053232]
[1732576950164,0.420028,93940.0,93933.0,0.053232]
[1732576950672,0.053229,93939.0,93933.0,0.053232]
[1732576951166,0.053229,93938.0,93933.0,0.053232]
[1732576951557,0.053229,93938.0,93932.0,0.18476]
[1732576951558,0.053229,93938.0,93936.0,0.05323]
[1732576953576,0.057229,93938.0,93936.0,0.05323]
[1732576954072,0.053232,93934.0,93932.0,0.18476]
[1732576954260,0.01,93933.0,93932.0,0.18476]
[1732576957360,0.012,93933.0,93927.0,0.053235]
[1732576957664,0.01,93919.0,93908.0,0.18892912]
[1732576957870,0.414044,93911.0,93910.0,0.053244]